[Event "Cracovia Festival-A 2023"]
[Site "Krakow"]
[Date "2024.01.02"]
[Round "7.10"]
[White "Cukrowski, Filip"]
[Black "Suder, Jakub"]
[Result "1/2-1/2"]
[ECO "B33"]
[WhiteElo "2402"]
[BlackElo "2312"]
[Annotator "RC"]
[PlyCount "211"]
[EventDate "2023.12.24"]
[EventType "swiss"]
[EventCountry "POL"]
[SourceTitle "playchess.com"]
[Source "ChessBase"]
[SourceQuality "1"]
[TimeControl "40/5400+30:1800+30"]

1. d4 {[%emt 0:09:34]} e6 {[%emt 0:00:22]} 2. Nf3 {[%emt 0:01:45]} c5 {[%emt 0:01:45]} 3. e4 {[%emt 0:03:18]} cxd4 {[%emt 0:00:16]} 4. Nxd4 {[%emt 0:00:13]} Nc6 {[%emt 0:00:05]} 5. Nc3 {[%emt 0:00:15]} Nf6 {[%emt 0:00:06]} 6. Ndb5 {[%emt 0:01:43]} d6 {[%emt 0:00:06]} 7. Bf4 {[%emt 0:01:38]} e5 {[%emt 0:00:06]} 8. Bg5 {[%emt 0:00:05]} a6 {[%emt 0:00:02]} 9. Na3 {[%emt 0:00:09]} Be6 {[%emt 0:00:05]} 10. Nc4 {[%emt 0:10:03]} Rb8 {[%emt 0:01:37]} 11. Be2 {[%emt 0:06:25]} Nd4 {[%emt 0:03:42]} 12. O-O {[%emt 0:01:39]} Rc8 {[%emt 0:02:19]} 13. Ne3 {[%emt 0:00:27]} Be7 {[%emt 0:02:26]} 14. Bd3 {[%emt 0:10:15]} Ng8 {[%emt 0:08:44]} 15. Bxe7 {[%emt 0:00:52]} Nxe7 {[%emt 0:00:17]} 16. Ncd5 {[%emt 0:01:22]} O-O {[%emt 0:04:18]} 17. c3 {[%emt 0:01:52]} Ndc6 {[%emt 0:02:52]} 18. Bc4 {[%emt 0:10:22]} Ng6 {[%emt 0:07:16]} 19. g3 {[%emt 0:00:24]} Kh8 {[%emt 0:03:53]} 20. Qh5 {[%emt 0:01:22]} b5 {[%emt 0:06:10]} 21. Be2 {[%emt 0:03:50]} Nce7 {[%emt 0:01:38]} 22. Rad1 {[%emt 0:04:51]} Nxd5 {[%emt 0:03:29]} 23. exd5 {[%emt 0:00:30]} Bd7 {[%emt 0:00:24]} 24. Bd3 {[%emt 0:00:29]} Re8 {[%emt 0:03:35]} 25. Be4 {[%emt 0:09:22]} Kg8 {[%emt 0:02:04]} 26. Rd3 {[%emt 0:04:23]} Nf8 {[%emt 0:03:27]} 27. g4 {[%emt 0:01:23]} Qf6 {[%emt 0:12:35]} 28. Ng2 {[%emt 0:11:35]} g6 {[%emt 0:03:03]} 29. g5 {[%emt 0:00:02]} Qe7 {[%emt 0:02:31]} 30. Qh4 {[%emt 0:00:27]} b4 {[%emt 0:02:15]} 31. Re1 {[%emt 0:00:52]} bxc3 {[%emt 0:01:40]} 32. bxc3 {[%emt 0:00:01]} Rc4 {[%emt 0:00:26]} 33. Ne3 {[%emt 0:01:14]} Ra4 {[%emt 0:03:29]} 34. c4 {[%emt 0:00:00]} h5 {[%emt 0:00:43]} 35. Qg3 {[%emt 0:01:07]} h4 {[%emt 0:01:20]} 36. Qxh4 {[%emt 0:00:13]} Nh7 {[%emt 0:00:05]} 37. Bg2 {[%emt 0:01:15]} Qxg5 {[%emt 0:01:51]} 38. Qxg5 {[%emt 0:00:06]} Nxg5 {[%emt 0:00:04]} 39. Rb3 {[%emt 0:01:12]} Bh3 {[%emt 0:05:22]} 40. Re2 {[%emt 0:00:00]} Bxg2 41. Kxg2 {[%emt 0:03:14]} f5 {[%emt 0:03:17]} 42. h4 {[%emt 0:00:35]} Nf7 {[%emt 0:03:35]} 43. Rb6 {[%emt 0:06:14]} Rc8 {[%emt 0:05:08]} 44. Reb2 {[%emt 0:07:27]} Kg7 {[%emt 0:07:27]} 45. Rc6 {[%emt 0:00:30]} Rf8 {[%emt 0:02:19]} 46. c5 {[%emt 0:08:08]} Rxh4 {[%emt 0:03:47]} 47. cxd6 {[%emt 0:02:50]} f4 {[%emt 0:01:45]} 48. Nf1 {[%emt 0:00:15]} e4 {[%emt 0:01:28]} 49. f3 {[%emt 0:05:22]} exf3+ {[%emt 0:04:11]} 50. Kf2 {[%emt 0:01:09]} Ne5 {[%emt 0:01:18]} 51. Rb7+ {[%emt 0:00:06]} Kh6 {[%emt 0:00:51]} 52. Re7 {[%emt 0:00:39]} Ng4+ {[%emt 0:02:45]} 53. Kxf3 {[%emt 0:00:08]} Kg5 {[%emt 0:00:09]} 54. d7 {[%emt 0:00:41]} Rh3+ {[%emt 0:02:46]} 55. Ke4 {[%emt 0:01:00]} Rd8 {[%emt 0:02:28]} 56. Kd4 {[%emt 0:00:35]} Nh6 {[%emt 0:02:57]} 57. Ree6 {[%emt 0:01:22]} Nf5+ {[%emt 0:01:16]} 58. Ke5 {[%emt 0:00:03]} Rh6 {[%emt 0:01:42]} 59. Nd2 {[%emt 0:01:18]} Rxd7 {[%emt 0:00:29]} 60. Ne4+ {[%emt 0:00:02]} Kh4 {[%emt 0:00:08]} 61. Rxg6 {[%emt 0:00:40]} Rxg6 {[%emt 0:01:33]} 62. Rxg6 {[%emt 0:00:01]} Rxd5+ {[%emt 0:00:38]} 63. Kxf4 {[%emt 0:00:10]} Ra5 {[%emt 0:01:13]} 64. Rg5 {[%emt 0:02:28]} Rxa2 {[%emt 0:00:38]} 65. Rg4+ {[%emt 0:00:43]} Kh3 {[%emt 0:01:34]} 66. Kxf5 {[%emt 0:00:06]} Rg2 {[%emt 0:01:00]} 67. Ng5+ {[%emt 0:00:19]} Kh2 {[%emt 0:00:01]} 68. Rh4+ {[%emt 0:00:26]} Kg3 {[%emt 0:00:23]} 69. Rh3+ {[%emt 0:00:03]} Kf2 {[%emt 0:00:04]} 70. Kf4 {[%emt 0:00:13]} Ke2 {[%emt 0:00:50]} 71. Ra3 {[%emt 0:00:33]} Rf2+ {[%emt 0:00:17]} 72. Nf3 {[%emt 0:00:25]} Kf1 {[%emt 0:01:10]} 73. Ra1+ {[%emt 0:01:07]} Ke2 {[%emt 0:00:07]} 74. Ke4 {[%emt 0:00:54]} Rg2 {[%emt 0:00:48]} 75. Nd4+ {[%emt 0:00:51]} Kf2 {[%emt 0:00:06]} 76. Ra2+ {[%emt 0:00:19]} Kf1 {[%emt 0:00:42]} 77. Ra1+ {[%emt 0:00:43]} Kf2 {[%emt 0:00:05]} 78. Kf4 {[%emt 0:00:12]} Rg8 {[%emt 0:00:44]} 79. Ra2+ {[%emt 0:00:07]} Kf1 {[%emt 0:00:25]} 80. Nf5 {[%emt 0:00:54]} Ke1 {[%emt 0:00:40]} 81. Ng3 {[%emt 0:00:35]} Re8 {[%emt 0:01:03]} 82. Ne4 {[%emt 0:00:38]} Kd1 {[%emt 0:00:32]} 83. Ke3 {[%emt 0:00:32]} Kc1 {[%emt 0:00:13]} 84. Ra5 {[%emt 0:00:13]} Rd8 {[%emt 0:00:30]} 85. Nf2 {[%emt 0:00:43]} Kc2 {[%emt 0:00:19]} 86. Rc5+ {[%emt 0:00:14]} Kb3 {[%emt 0:00:10]} 87. Nd3 {[%emt 0:00:31]} Rh8 {[%emt 0:00:13]} 88. Nf4 {[%emt 0:00:26]} Kb4 {[%emt 0:00:16]} 89. Rc7 {[%emt 0:00:20]} Kb5 {[%emt 0:00:12]} 90. Kd4 {[%emt 0:00:29]} Rh4 {[%emt 0:00:16]} 91. Rf7 {[%emt 0:00:45]} Rh1 {[%emt 0:00:35]} 92. Nd3 {[%emt 0:00:26]} Kb6 {[%emt 0:00:28]} 93. Re7 {[%emt 0:00:38]} Kb5 {[%emt 0:01:13]} 94. Kd5 {[%emt 0:00:26]} Kb6 {[%emt 0:00:19]} 95. Re6+ {[%emt 0:00:32]} Kb5 {[%emt 0:00:15]} 96. Re2 {[%emt 0:00:27]} Kb6 {[%emt 0:00:11]} 97. Rc2 {[%emt 0:00:17]} Rh5+ {[%emt 0:00:48]} 98. Ne5 {[%emt 0:00:11]} Kb7 {[%emt 0:00:15]} 99. Re2 {[%emt 0:00:36]} Kb6 {[%emt 0:00:49]} 100. Rb2+ {[%emt 0:00:16]} Kc7 {[%emt 0:00:14]} 101. Rb1 {[%emt 0:00:38]} Rh2 {[%emt 0:01:22]} 102. Rc1+ {[%emt 0:00:17]} Kb7 {[%emt 0:00:44]} 103. Nf7 {[%emt 0:00:49]} Kb6 {[%emt 0:00:30]} 104. Rc6+ {[%emt 0:00:35]} Ka5 {[%emt 0:00:39]} 105. Nd6 {[%emt 0:00:41]} Rh5+ {[%emt 0:00:28]} 106. Ke4 1/2-1/2

[Event "Cracovia Festival-A 2023"]
[Site "Krakow"]
[Date "2024.01.02"]
[Round "7.11"]
[White "Baumegger, Siegfried"]
[Black "Ernst, Robert"]
[Result "1-0"]
[ECO "A06"]
[WhiteElo "2388"]
[BlackElo "2271"]
[Annotator "RC"]
[PlyCount "99"]
[EventDate "2023.12.24"]
[EventType "swiss"]
[EventCountry "POL"]
[SourceTitle "playchess.com"]
[Source "ChessBase"]
[SourceQuality "1"]
[TimeControl "40/5400+30:1800+30"]

1. Nf3 {[%emt 0:00:56]} d5 {[%emt 0:00:10]} 2. g3 {[%emt 0:02:03]} Nf6 {[%emt 0:00:11]} 3. Bg2 {[%emt 0:00:12]} Bg4 {[%emt 0:01:30]} 4. d4 {[%emt 0:02:14]} e6 {[%emt 0:00:26]} 5. h3 {[%emt 0:00:14]} Bh5 {[%emt 0:01:37]} 6. c4 {[%emt 0:02:01]} c6 {[%emt 0:00:17]} 7. O-O {[%emt 0:00:13]} Nbd7 {[%emt 0:01:27]} 8. cxd5 {[%emt 0:00:35]} exd5 {[%emt 0:00:10]} 9. Qb3 {[%emt 0:00:20]} Qb6 {[%emt 0:00:54]} 10. Qe3+ {[%emt 0:00:20]} Be7 {[%emt 0:01:03]} 11. Nh4 {[%emt 0:01:09]} Bg6 {[%emt 0:03:06]} 12. Nxg6 {[%emt 0:01:43]} hxg6 {[%emt 0:00:11]} 13. Nc3 {[%emt 0:00:11]} Qd8 {[%emt 0:15:49]} 14. Qd3 {[%emt 0:00:34]} O-O {[%emt 0:00:22]} 15. h4 {[%emt 0:04:31]} Ne8 {[%emt 0:04:40]} 16. e4 {[%emt 0:05:32]} dxe4 {[%emt 0:00:17]} 17. Nxe4 {[%emt 0:00:55]} Nef6 {[%emt 0:04:43]} 18. Nc3 {[%emt 0:24:19]} Nb6 {[%emt 0:00:56]} 19. a4 {[%emt 0:04:15]} a5 {[%emt 0:03:41]} 20. Bg5 {[%emt 0:06:09]} Nfd5 {[%emt 0:08:46]} 21. Nxd5 {[%emt 0:00:46]} Nxd5 {[%emt 0:00:22]} 22. Bxd5 {[%emt 0:01:27]} cxd5 {[%emt 0:00:36]} 23. Bxe7 {[%emt 0:04:33]} Qxe7 {[%emt 0:00:09]} 24. Qb5 {[%emt 0:00:31]} Qb4 {[%emt 0:20:36]} 25. Qxb4 {[%emt 0:06:04]} axb4 {[%emt 0:00:26]} 26. Rfe1 {[%emt 0:01:46]} Rfe8 {[%emt 0:07:32]} 27. b3 {[%emt 0:00:11]} Rec8 {[%emt 0:18:09]} 28. Re7 {[%emt 0:04:43]} Rc3 {[%emt 0:03:10]} 29. Rb1 {[%emt 0:00:45]} b5 {[%emt 0:00:00]} 30. axb5 Rb8 31. Rd7 {[%emt 0:11:43]} Rxb5 {[%emt 0:00:02]} 32. Re1 {[%emt 0:00:54]} Rb8 {[%emt 0:00:15]} 33. Ree7 {[%emt 0:00:24]} Rf8 {[%emt 0:00:01]} 34. Re3 {[%emt 0:00:14]} Rfc8 {[%emt 0:01:11]} 35. Rxd5 {[%emt 0:00:46]} Rxe3 {[%emt 0:00:07]} 36. fxe3 {[%emt 0:00:05]} Rc3 {[%emt 0:00:18]} 37. Rd8+ {[%emt 0:00:09]} Kh7 {[%emt 0:00:01]} 38. Kf2 {[%emt 0:00:14]} Rxb3 {[%emt 0:00:17]} 39. Rb8 {[%emt 0:04:01]} Rb1 {[%emt 0:00:39]} 40. Kf3 {[%emt 0:00:00]} f5 {[%emt 0:00:00]} 41. d5 {[%emt 0:16:06]} b3 {[%emt 0:07:50]} 42. Kf4 {[%emt 0:03:18]} Rd1 {[%emt 0:00:10]} 43. Ke5 {[%emt 0:03:33]} Rd3 {[%emt 0:00:09]} 44. d6 {[%emt 0:01:47]} Rxe3+ {[%emt 0:00:09]} 45. Kd4 {[%emt 0:01:32]} Re6 {[%emt 0:01:21]} 46. Kd5 {[%emt 0:00:38]} Re3 {[%emt 0:00:01]} 47. d7 {[%emt 0:01:04]} Rd3+ {[%emt 0:01:24]} 48. Ke6 {[%emt 0:00:20]} b2 {[%emt 0:01:07]} 49. Rxb2 {[%emt 0:01:05]} g5 {[%emt 0:00:06]} 50. Rb5 {[%emt 0:04:09]} 1-0

[Event "Cracovia Festival-A 2023"]
[Site "Krakow"]
[Date "2024.01.02"]
[Round "7.12"]
[White "Antolak, Julia"]
[Black "Kulkarni Bhakti"]
[Result "1/2-1/2"]
[ECO "C07"]
[WhiteElo "2287"]
[BlackElo "2364"]
[Annotator "RC"]
[PlyCount "36"]
[EventDate "2023.12.24"]
[EventType "swiss"]
[EventCountry "POL"]
[SourceTitle "playchess.com"]
[Source "ChessBase"]
[SourceQuality "1"]
[TimeControl "40/5400+30:1800+30"]

1. d4 {[%emt 0:00:03]} e6 {[%emt 0:04:06]} 2. e4 {[%emt 0:01:17]} d5 {[%emt 0:00:10]} 3. Nd2 {[%emt 0:00:04]} c5 {[%emt 0:00:31]} 4. exd5 {[%emt 0:00:07]} Qxd5 {[%emt 0:00:14]} 5. dxc5 {[%emt 0:00:20]} Nf6 {[%emt 0:00:18]} 6. Ngf3 {[%emt 0:00:09]} Qxc5 {[%emt 0:01:53]} 7. g3 {[%emt 0:02:42]} e5 {[%emt 0:14:18]} 8. Nb3 {[%emt 0:04:54]} Qc7 {[%emt 0:00:44]} 9. Bg2 {[%emt 0:01:50]} Bd6 {[%emt 0:05:59]} 10. O-O {[%emt 0:03:14]} O-O {[%emt 0:00:16]} 11. Bg5 {[%emt 0:02:39]} Ne4 {[%emt 0:04:45]} 12. Be3 {[%emt 0:07:19]} Nc6 {[%emt 0:10:01]} 13. c4 {[%emt 0:10:28]} Bg4 {[%emt 0:10:55]} 14. Qc2 {[%emt 0:04:13]} f5 {[%emt 0:03:37]} 15. Nh4 {[%emt 0:13:21]} Nb4 {[%emt 0:02:38]} 16. Qc1 {[%emt 0:01:42]} Nd3 {[%emt 0:03:12]} 17. Qc2 {[%emt 0:00:53]} Nb4 {[%emt 0:00:59]} 18. Qc1 {[%emt 0:00:38]} Nd3 {[%emt 0:02:51]} 1/2-1/2

[Event "Cracovia Festival-A 2023"]
[Site "Krakow"]
[Date "2024.01.02"]
[Round "7.13"]
[White "Piekielny, Pawel"]
[Black "Golubka, Petro"]
[Result "0-1"]
[ECO "B75"]
[WhiteElo "2250"]
[BlackElo "2440"]
[Annotator "RC"]
[PlyCount "114"]
[EventDate "2023.12.24"]
[EventType "swiss"]
[EventCountry "POL"]
[SourceTitle "playchess.com"]
[Source "ChessBase"]
[SourceQuality "1"]
[TimeControl "40/5400+30:1800+30"]

1. e4 {[%emt 0:00:02]} c5 {[%emt 0:20:22]} 2. Nf3 {[%emt 0:00:06]} d6 {[%emt 0:00:03]} 3. d4 {[%emt 0:00:20]} cxd4 {[%emt 0:00:05]} 4. Nxd4 {[%emt 0:00:04]} Nf6 {[%emt 0:00:02]} 5. Nc3 {[%emt 0:00:08]} g6 {[%emt 0:00:03]} 6. Be3 {[%emt 0:00:33]} Bg7 {[%emt 0:00:04]} 7. f3 {[%emt 0:00:18]} Nc6 {[%emt 0:00:04]} 8. Qd2 {[%emt 0:00:07]} O-O {[%emt 0:00:07]} 9. g4 {[%emt 0:00:11]} Be6 {[%emt 0:00:18]} 10. Nxe6 {[%emt 0:00:28]} fxe6 {[%emt 0:00:02]} 11. O-O-O {[%emt 0:00:29]} Nd7 {[%emt 0:01:48]} 12. Bc4 {[%emt 0:05:34]} Rxf3 {[%emt 0:00:29]} 13. Bxe6+ {[%emt 0:00:05]} Kh8 {[%emt 0:00:05]} 14. h4 {[%emt 0:01:19]} Nc5 {[%emt 0:00:44]} 15. Bd5 {[%emt 0:03:51]} Qb6 {[%emt 0:03:51]} 16. Rde1 {[%emt 0:11:39]} Raf8 {[%emt 0:03:41]} 17. g5 {[%emt 0:09:54]} e6 {[%emt 0:01:52]} 18. h5 {[%emt 0:13:49]} gxh5 {[%emt 0:03:55]} 19. Bxc6 {[%emt 0:09:04]} Qxc6 {[%emt 0:03:18]} 20. Qh2 {[%emt 0:04:52]} Qe8 {[%emt 0:02:13]} 21. Qxd6 {[%emt 0:03:06]} b6 {[%emt 0:09:39]} 22. Qh2 {[%emt 0:09:46]} Kg8 {[%emt 0:03:14]} 23. Qxh5 {[%emt 0:04:06]} Qxh5 {[%emt 0:01:31]} 24. Rxh5 {[%emt 0:00:01]} Bxc3 {[%emt 0:00:30]} 25. bxc3 {[%emt 0:00:10]} Rf1 {[%emt 0:02:51]} 26. Rxf1 {[%emt 0:01:36]} Rxf1+ {[%emt 0:00:05]} 27. Kb2 {[%emt 0:00:05]} Nxe4 {[%emt 0:00:18]} 28. Rh6 {[%emt 0:03:03]} Nd6 {[%emt 0:03:49]} 29. Bd4 {[%emt 0:07:18]} Re1 {[%emt 0:00:32]} 30. g6 {[%emt 0:00:44]} hxg6 {[%emt 0:00:05]} 31. Rxg6+ {[%emt 0:01:18]} Kf8 {[%emt 0:00:15]} 32. a4 {[%emt 0:01:05]} Nc4+ {[%emt 0:00:24]} 33. Kb3 {[%emt 0:00:53]} Nd2+ {[%emt 0:00:12]} 34. Kb2 {[%emt 0:05:50]} e5 {[%emt 0:00:29]} 35. Bf2 {[%emt 0:00:46]} Rf1 {[%emt 0:03:13]} 36. Bh4 {[%emt 0:00:44]} Kf7 {[%emt 0:02:57]} 37. Rc6 {[%emt 0:00:57]} Nf3 {[%emt 0:01:10]} 38. Bg3 {[%emt 0:01:22]} e4 {[%emt 0:02:20]} 39. Bf4 {[%emt 0:00:08]} Nh4 {[%emt 0:00:55]} 40. Bc1 {[%emt 0:00:00]} Nf5 {[%emt 0:00:00]} 41. c4 {[%emt 0:11:37]} e3 {[%emt 0:02:20]} 42. a5 {[%emt 0:06:48]} e2 {[%emt 0:02:58]} 43. Bd2 {[%emt 0:00:04]} Rd1 {[%emt 0:00:46]} 44. Bc3 {[%emt 0:01:48]} Nd6 {[%emt 0:00:24]} 45. axb6 {[%emt 0:07:15]} axb6 {[%emt 0:00:26]} 46. Bb4 {[%emt 0:00:54]} Ke8 {[%emt 0:00:33]} 47. Rc7 {[%emt 0:00:48]} Kd8 {[%emt 0:01:41]} 48. Rh7 {[%emt 0:00:58]} Nxc4+ {[%emt 0:01:48]} 49. Kb3 {[%emt 0:00:06]} Nd2+ {[%emt 0:01:16]} 50. Bxd2 {[%emt 0:00:06]} Rxd2 {[%emt 0:00:02]} 51. Rh8+ {[%emt 0:00:10]} Ke7 {[%emt 0:00:08]} 52. Rh7+ {[%emt 0:00:31]} Kf6 {[%emt 0:00:07]} 53. Rh6+ {[%emt 0:00:06]} Kf5 {[%emt 0:00:05]} 54. Rh5+ {[%emt 0:00:04]} Kf4 {[%emt 0:00:07]} 55. Rh4+ {[%emt 0:00:04]} Kf3 {[%emt 0:00:07]} 56. Rh3+ {[%emt 0:00:07]} Kg2 {[%emt 0:00:11]} 57. Re3 {[%emt 0:00:19]} Kf2 {[%emt 0:00:07]} 0-1

[Event "Cracovia Festival-A 2023"]
[Site "Krakow"]
[Date "2024.01.02"]
[Round "7.14"]
[White "Fodor, Balazs"]
[Black "Schwabeneder, Florian"]
[Result "0-1"]
[ECO "E10"]
[WhiteElo "2225"]
[BlackElo "2402"]
[Annotator "RC"]
[PlyCount "82"]
[EventDate "2023.12.24"]
[EventType "swiss"]
[EventCountry "POL"]
[SourceTitle "playchess.com"]
[Source "ChessBase"]
[SourceQuality "1"]
[TimeControl "40/5400+30:1800+30"]

1. d4 {[%emt 0:04:40]} Nf6 {[%emt 0:00:22]} 2. c4 {[%emt 0:00:09]} e6 {[%emt 0:00:32]} 3. Nf3 {[%emt 0:00:25]} a6 {[%emt 0:02:47]} 4. g3 {[%emt 0:02:47]} b5 {[%emt 0:00:26]} 5. cxb5 {[%emt 0:02:38]} axb5 {[%emt 0:00:08]} 6. Bg2 {[%emt 0:00:08]} Bb7 {[%emt 0:00:09]} 7. O-O {[%emt 0:00:09]} Be7 {[%emt 0:02:09]} 8. b3 {[%emt 0:02:57]} O-O {[%emt 0:01:12]} 9. Bb2 {[%emt 0:00:18]} b4 {[%emt 0:12:10]} 10. Nbd2 {[%emt 0:04:51]} d5 {[%emt 0:00:50]} 11. Ne5 {[%emt 0:04:21]} Nbd7 {[%emt 0:15:54]} 12. Nxd7 {[%emt 0:09:31]} Qxd7 {[%emt 0:01:26]} 13. Nf3 {[%emt 0:00:17]} Ra5 {[%emt 0:03:34]} 14. Ne5 {[%emt 0:12:28]} Qb5 {[%emt 0:00:49]} 15. Qc2 {[%emt 0:00:42]} Bd6 {[%emt 0:00:55]} 16. Bc1 {[%emt 0:05:09]} c5 {[%emt 0:07:43]} 17. e3 {[%emt 0:00:19]} Rc8 {[%emt 0:06:31]} 18. Qd1 {[%emt 0:11:49]} Rca8 {[%emt 0:04:59]} 19. Qc2 {[%emt 0:00:11]} Bxe5 {[%emt 0:01:31]} 20. dxe5 {[%emt 0:00:08]} Nd7 {[%emt 0:00:06]} 21. f4 {[%emt 0:01:11]} Ba6 {[%emt 0:03:15]} 22. Rd1 {[%emt 0:06:28]} Qe2 {[%emt 0:05:50]} 23. Bd2 {[%emt 0:00:06]} Bd3 {[%emt 0:01:32]} 24. Qc1 {[%emt 0:00:26]} Bg6 {[%emt 0:01:33]} 25. a4 {[%emt 0:00:38]} f6 {[%emt 0:01:39]} 26. Bf1 {[%emt 0:04:45]} Qf3 {[%emt 0:02:04]} 27. Bg2 {[%emt 0:00:08]} Qg4 {[%emt 0:04:08]} 28. h3 {[%emt 0:00:53]} Qe2 {[%emt 0:00:18]} 29. g4 {[%emt 0:05:07]} Qa6 {[%emt 0:04:34]} 30. f5 {[%emt 0:00:50]} Bf7 {[%emt 0:00:54]} 31. exf6 {[%emt 0:02:16]} Nxf6 {[%emt 0:02:41]} 32. g5 {[%emt 0:06:37]} Ne4 {[%emt 0:00:09]} 33. Bxe4 {[%emt 0:02:16]} dxe4 {[%emt 0:00:07]} 34. f6 {[%emt 0:01:16]} Qe2 {[%emt 0:02:48]} 35. Be1 {[%emt 0:04:46]} c4 {[%emt 0:01:39]} 36. Bh4 {[%emt 0:00:39]} Qh5 {[%emt 0:01:40]} 37. Qd2 {[%emt 0:02:12]} Qxh4 {[%emt 0:02:21]} 38. Qd8+ {[%emt 0:00:08]} Rxd8 {[%emt 0:00:09]} 39. Rxd8+ {[%emt 0:00:05]} Be8 {[%emt 0:00:08]} 40. Rxe8+ {[%emt 0:00:00]} Kf7 {[%emt 0:00:00]} 41. Re7+ {[%emt 0:00:10]} Kf8 {[%emt 0:00:44]} 0-1

[Event "Cracovia Festival-A 2023"]
[Site "Krakow"]
[Date "2024.01.02"]
[Round "7.15"]
[White "Dziewonski, Dariusz"]
[Black "Sieciechowicz, Marcin"]
[Result "1-0"]
[ECO "C17"]
[WhiteElo "2224"]
[BlackElo "2391"]
[Annotator "RC"]
[PlyCount "45"]
[EventDate "2023.12.24"]
[EventType "swiss"]
[EventCountry "POL"]
[SourceTitle "playchess.com"]
[Source "ChessBase"]
[SourceQuality "1"]
[TimeControl "40/5400+30:1800+30"]

1. e4 {[%emt 0:00:47]} e6 {[%emt 0:00:07]} 2. d4 {[%emt 0:01:23]} d5 {[%emt 0:00:03]} 3. Nc3 {[%emt 0:01:12]} Bb4 {[%emt 0:00:06]} 4. e5 {[%emt 0:01:51]} c5 {[%emt 0:00:05]} 5. Bd2 {[%emt 0:03:12]} Ne7 {[%emt 0:00:28]} 6. Nb5 {[%emt 0:00:31]} Bxd2+ {[%emt 0:00:09]} 7. Qxd2 {[%emt 0:00:04]} O-O {[%emt 0:00:11]} 8. f4 {[%emt 0:00:47]} Bd7 {[%emt 0:00:15]} 9. Nd6 {[%emt 0:06:35]} cxd4 {[%emt 0:02:02]} 10. Nf3 {[%emt 0:02:02]} f6 {[%emt 0:01:08]} 11. Bd3 {[%emt 0:11:12]} Nbc6 {[%emt 0:00:56]} 12. O-O {[%emt 0:04:26]} Qb6 {[%emt 0:00:37]} 13. Qf2 {[%emt 0:11:26]} h6 {[%emt 0:12:25]} 14. Qg3 {[%emt 0:02:05]} Nb4 {[%emt 0:08:04]} 15. Nh4 {[%emt 0:13:26]} Nxd3 {[%emt 0:07:26]} 16. Qxd3 {[%emt 0:04:34]} Qxb2 {[%emt 0:22:15]} 17. Rab1 {[%emt 0:12:36]} Qc3 {[%emt 0:00:31]} 18. Rxb7 {[%emt 0:02:04]} Rad8 {[%emt 0:00:23]} 19. Ng6 {[%emt 0:03:28]} Nxg6 {[%emt 0:02:39]} 20. Qxg6 {[%emt 0:00:05]} Qe3+ {[%emt 0:02:53]} 21. Kh1 {[%emt 0:00:05]} Qe2 {[%emt 0:11:17]} 22. Rfb1 {[%emt 0:03:34]} Qf2 {[%emt 0:07:09]} 23. Ne8 {[%emt 0:00:27]} 1-0

[Event "Cracovia Festival-A 2023"]
[Site "Krakow"]
[Date "2024.01.02"]
[Round "7.16"]
[White "Gierulski, Kamil"]
[Black "Karolczuk, Iwo"]
[Result "1/2-1/2"]
[ECO "C02"]
[WhiteElo "2223"]
[BlackElo "2365"]
[Annotator "RC"]
[PlyCount "40"]
[EventDate "2023.12.24"]
[EventType "swiss"]
[EventCountry "POL"]
[SourceTitle "playchess.com"]
[Source "ChessBase"]
[SourceQuality "1"]
[TimeControl "40/5400+30:1800+30"]

1. e4 {[%emt 0:00:02]} e6 {[%emt 0:00:14]} 2. d4 {[%emt 0:00:02]} d5 {[%emt 0:00:07]} 3. e5 {[%emt 0:00:03]} c5 {[%emt 0:00:07]} 4. c3 {[%emt 0:00:02]} Nc6 {[%emt 0:00:07]} 5. Nf3 {[%emt 0:00:04]} Bd7 {[%emt 0:00:12]} 6. Be2 {[%emt 0:00:04]} cxd4 {[%emt 0:00:16]} 7. cxd4 {[%emt 0:00:09]} Nge7 {[%emt 0:00:04]} 8. Na3 {[%emt 0:00:47]} Nf5 {[%emt 0:00:37]} 9. Nc2 {[%emt 0:00:06]} Be7 {[%emt 0:03:10]} 10. O-O {[%emt 0:00:04]} O-O {[%emt 0:00:05]} 11. Bd3 {[%emt 0:00:35]} f6 {[%emt 0:05:06]} 12. exf6 {[%emt 0:19:42]} Bxf6 {[%emt 0:00:51]} 13. b3 {[%emt 0:07:24]} e5 {[%emt 0:08:45]} 14. dxe5 {[%emt 0:00:18]} Nxe5 {[%emt 0:00:07]} 15. Nxe5 {[%emt 0:00:19]} Bxe5 {[%emt 0:00:10]} 16. Rb1 {[%emt 0:00:11]} Qf6 {[%emt 0:10:34]} 17. Ne3 {[%emt 0:02:52]} Nxe3 {[%emt 0:03:09]} 18. Bxe3 {[%emt 0:00:58]} Qd6 {[%emt 0:13:08]} 19. Qh5 {[%emt 0:03:03]} g6 {[%emt 0:02:31]} 20. Qh4 {[%emt 0:00:33]} Bf6 {[%emt 0:12:12]} 1/2-1/2

[Event "Cracovia Festival-A 2023"]
[Site "Krakow"]
[Date "2024.01.02"]
[Round "7.17"]
[White "Jaskolka, Tomasz"]
[Black "Dubnevych, Maksym"]
[Result "1-0"]
[ECO "A45"]
[WhiteElo "2222"]
[BlackElo "2340"]
[Annotator "RC"]
[PlyCount "93"]
[EventDate "2023.12.24"]
[EventType "swiss"]
[EventCountry "POL"]
[SourceTitle "playchess.com"]
[Source "ChessBase"]
[SourceQuality "1"]
[TimeControl "40/5400+30:1800+30"]

1. d4 {[%emt 0:00:05]} Nf6 {[%emt 0:00:07]} 2. Nc3 {[%emt 0:00:05]} d5 {[%emt 0:00:32]} 3. Bf4 {[%emt 0:00:06]} c5 {[%emt 0:00:08]} 4. e4 {[%emt 0:00:08]} Nxe4 {[%emt 0:00:12]} 5. Nxe4 {[%emt 0:00:08]} dxe4 {[%emt 0:00:02]} 6. dxc5 {[%emt 0:00:07]} Qa5+ {[%emt 0:00:01]} 7. c3 {[%emt 0:00:06]} Qxc5 {[%emt 0:00:02]} 8. Qa4+ {[%emt 0:00:06]} Nc6 {[%emt 0:00:03]} 9. Qxe4 {[%emt 0:00:05]} g6 {[%emt 0:00:04]} 10. Nf3 {[%emt 0:00:13]} Bg7 {[%emt 0:00:04]} 11. Rd1 {[%emt 0:00:06]} Bf5 {[%emt 0:01:28]} 12. Qa4 {[%emt 0:00:06]} O-O {[%emt 0:06:31]} 13. Be3 {[%emt 0:00:17]} Qa5 {[%emt 0:00:02]} 14. Qxa5 {[%emt 0:00:12]} Nxa5 {[%emt 0:00:03]} 15. Nd4 {[%emt 0:00:23]} Bg4 {[%emt 0:10:27]} 16. f3 {[%emt 0:00:12]} Bc8 {[%emt 0:02:05]} 17. Kf2 {[%emt 0:04:33]} Bd7 {[%emt 0:11:36]} 18. Nb5 {[%emt 0:09:49]} Bxb5 {[%emt 0:08:05]} 19. Bxb5 {[%emt 0:00:46]} a6 {[%emt 0:00:10]} 20. Be2 {[%emt 0:00:40]} b5 {[%emt 0:00:26]} 21. Rd7 {[%emt 0:03:30]} e6 {[%emt 0:00:35]} 22. Rhd1 {[%emt 0:01:56]} Rfc8 {[%emt 0:02:12]} 23. Bb6 {[%emt 0:30:46]} Nc6 {[%emt 0:14:17]} 24. Rb7 {[%emt 0:10:54]} Ne5 {[%emt 0:01:56]} 25. Bd4 {[%emt 0:02:39]} Rab8 26. Rxb8 {[%emt 0:03:38]} Rxb8 {[%emt 0:04:10]} 27. b4 {[%emt 0:06:47]} Bf6 {[%emt 0:12:19]} 28. a4 {[%emt 0:03:57]} Nd7 {[%emt 0:02:15]} 29. a5 {[%emt 0:02:31]} Be7 {[%emt 0:02:22]} 30. f4 {[%emt 0:00:37]} Nf6 {[%emt 0:02:05]} 31. Be5 {[%emt 0:03:11]} Rd8 {[%emt 0:03:29]} 32. Rxd8+ {[%emt 0:00:14]} Bxd8 {[%emt 0:00:01]} 33. Bf3 {[%emt 0:00:28]} Nd5 {[%emt 0:00:01]} 34. Bxd5 {[%emt 0:00:51]} exd5 {[%emt 0:00:01]} 35. Ke3 {[%emt 0:00:11]} f6 {[%emt 0:00:01]} 36. Bb8 {[%emt 0:03:49]} Kf7 {[%emt 0:00:01]} 37. Kd4 {[%emt 0:00:52]} Ke6 {[%emt 0:00:01]} 38. Kc5 {[%emt 0:04:14]} h5 {[%emt 0:00:43]} 39. Kc6 {[%emt 0:00:41]} h4 {[%emt 0:00:12]} 40. Ba7 {[%emt 0:00:00]} f5 {[%emt 0:00:00]} 41. Bd4 {[%emt 0:05:13]} g5 {[%emt 0:03:57]} 42. Kb7 {[%emt 0:01:02]} Kd7 {[%emt 0:00:11]} 43. Kxa6 {[%emt 0:00:13]} Kc6 {[%emt 0:00:01]} 44. Be5 {[%emt 0:03:56]} gxf4 {[%emt 0:00:20]} 45. h3 {[%emt 0:00:17]} Be7 {[%emt 0:04:55]} 46. Ka7 {[%emt 0:00:28]} Bd8 {[%emt 0:00:19]} 47. Kb8 {[%emt 0:00:37]} 1-0